Cogmind - Beta 12 @@@ ROGUE MODE // 2023.03.15 @ 13:59:44 Player: Red Box Result: Self-destructed Performance ------------- Evolutions (3) 1500 Regions Visited (18) 3600 Robots Destroyed (265) 1325 Value Destroyed (11276) 11276 Prototype IDs (29) 580 Alien Tech Used (0) 0 Bonus (2876) 2876 TOTAL SCORE: 21157 Bonus ------- High Alert Combat Kills 1886 Follower Combat Kills 685 Entered Garrisons 400 Met Data Miner 300 Friendly Fire -395 Cogmind --------- Core Integrity 252/700 Matter 258/300 Energy 314/315 System Corruption 14% Temperature Cool (0) Movement Rolling (225) Ox9 Location -7/Data Miner Parts ------- > --- POWER (1) -------- Neutrino Core > --- PROPULSION (2) --- Medium Treads Armored Wheel > --- UTILITY (7) ------ Advanced Cryofiber Web (fused) High-capacity Storage Unit Core Analyzer Hardened Heavy Armor Plating Advanced System Shield Sensor Drone Bay (20/20) > --- WEAPON (3) ------- Heavy Mass Driver > --- INVENTORY (20) --- Neutrino Core Antimatter Reactor Armored Treads Centrium Wheel Advanced Power Amplifier High-capacity Battery (250) Encrypted Comm Array Improved Medium Armor Plating Improved Thermal Shield Variable Charge Gun Quantum Rifle Advanced Plasma Cannon Railgun Heavy Mass Driver Hypervelocity Gauss Cannon Hardcell Cannon Hardcell Cannon Heavy Gauss Cannon Force Lance Peak State ------------ > --- POWER ------------ Antimatter Reactor > --- PROPULSION ------- Flexi-carbon Leg Armored Wheel > --- UTILITY ---------- Advanced Cryofiber Web High-capacity Storage Unit Layered Heavy Armor Plating Improved Focal Shield Improved Thermal Shield Advanced System Shield > --- WEAPON ----------- Matter Neutralizer Guided EMP Blaster > --- INVENTORY -------- Neutrino Core Centrium Wheel Advanced Power Amplifier High-capacity Battery Core Analyzer Sensor Drone Bay Variable Charge Gun Phase Gun Quantum Rifle Advanced Plasma Cannon Railgun Heavy Mass Driver Heavy Mass Driver Hypervelocity Gauss Cannon Hardcell Cannon Hardcell Cannon Heavy Gauss Cannon Force Lance [Rating: 83] Favorites ----------- Power Improved Ion Engine Engine Improved Ion Engine Power Core Neutrino Core Reactor Antimatter Reactor Propulsion Armored Wheel Treads Medium Treads Leg Flexi-carbon Leg Wheel Armored Wheel Hover Unit Cooled Aerolev Unit Utility High-capacity Storage Unit Device Advanced Heat Sink Storage High-capacity Storage Unit Processor Improved Targeting Computer Hackware Advanced System Shield Protection Powered Armor Weapon Flak Gun Energy Gun Cooled Pulse Rifle Energy Cannon Matter Neutralizer Ballistic Gun Flak Gun Ballistic Cannon Light Cannon Launcher Guided EMP Blaster Impact Weapon Heavy Mace Slashing Weapon Ionic Axe Build | -11 -10 -10 -9 -9 -9 -8 -8 -8 -8 -8 -7 -7 -7 -7 -7 -7 -7 -7 ------- Run | Jun Mat Min Mat Min Exi Min Mat Gar Mat Sto Fac Was Fac Gar Fac Low Low Dat Slots Evolved 6 | . . . 2 . . . 2 . . . 2 . . . . . . . Power . | . . . . . . . . . . . . . . . . . . . Propulsion . | . . . . . . . . . . . . . . . . . . . Utility 5 | . . . 2 . . . 1 . . . 2 . . . . . . . Weapon 1 | . . . . . . . 1 . . . . . . . . . . . Parts Attached 321 | 9 9 9 45 . 2 . 45 38 22 16 22 4 20 47 3 6 23 1 Power 23 | 1 1 . 6 . . . 1 . 2 . 5 2 1 2 . 2 . . Engine 13 | 1 1 . 5 . . . 1 . 2 . 2 . 1 . . . . . Core 8 | . . . 1 . . . . . . . 3 1 . 1 . 2 . . Reactor 2 | . . . . . . . . . . . . 1 . 1 . . . . Propulsion 36 | 4 1 4 9 . . . 4 1 4 2 1 . . 5 1 . . . Treads 4 | . . . 1 . . . 1 . . . . . . 2 . . . . Leg 4 | 2 . . 1 . . . . . . . . . . 1 . . . . Wheel 27 | 2 1 4 7 . . . 3 1 4 1 1 . . 2 1 . . . Hover 1 | . . . . . . . . . . 1 . . . . . . . . Flight . | . . . . . . . . . . . . . . . . . . . Utility 114 | 2 2 . 14 . . . 17 13 10 3 15 . 10 13 1 3 11 . Device 64 | 1 . . 7 . . . 9 9 3 . 11 . 5 9 1 3 6 . Storage 4 | 1 1 . 1 . . . . . . . 1 . . . . . . . Processor 9 | . 1 . 1 . . . . 1 . 1 1 . . 1 . . 3 . Hackware 4 | . . . 2 . . . 1 1 . . . . . . . . . . Protection 33 | . . . 3 . . . 7 2 7 2 2 . 5 3 . . 2 . Artifact . | . . . . . . . . . . . . . . . . . . . Weapon 148 | 2 5 5 16 . 2 . 23 24 6 11 1 2 9 27 1 1 12 1 Energy Gun 47 | 1 . . 6 . . . 6 2 2 10 1 1 6 8 . . 4 . Energy Cannon 13 | . . . 4 . . . . 4 . . . . . 3 . . 2 . Ballistic Gun 36 | 1 1 . 4 . 2 . 14 11 3 . . . . . . . . . Ballistic Cannon 25 | . 4 3 1 . . . . 2 . . . . 1 8 1 . 4 1 Launcher 19 | . . 2 . . . . 2 . 1 1 . . 2 8 . 1 2 . Special Weapon . | . . . . . . . . . . . . . . . . . . . Impact Weapon 7 | . . . 1 . . . 1 5 . . . . . . . . . . Slashing Weapon 1 | . . . . . . . . . . . . 1 . . . . . . Piercing Weapon . | . . . . . . . . . . . . . . . . . . . Special Melee Weapon . | . . . . . . . . . . . . . . . . . . . Unidentified Prototypes 10 | . . . . . . . 2 . . 5 2 1 . . . . . . Parts Lost 48 | . 2 4 14 . . . 5 6 . 1 1 . 3 9 . . 2 1 Power 5 | . . . 4 . . . . . . . . . . 1 . . . . Propulsion 13 | . 1 3 6 . . . 1 1 . . . . . 1 . . . . Utility 16 | . 1 . 1 . . . 2 3 . 1 1 . 2 4 . . 1 . Weapon 14 | . . 1 3 . . . 2 2 . . . . 1 3 . . 1 1 Highest Loss Streak 5 | . 1 2 3 . . . 2 4 . 1 1 . 1 5 . . 2 1 To Critical Strikes 1 | . . . . . . . 1 . . . . . . . . . . . Average Slot Usage (%) 93 | . 100 99 98 100 79 100 98 99 93 88 91 92 90 84 84 83 87 76 Engine 7 | . 14 14 10 11 11 11 9 9 8 9 2 . 7 3 . . . . Core 1 | . . . . . . . . . . . 4 3 . 2 7 6 7 7 Treads 1 | . . . . . . . 3 . . . . . . 2 7 7 7 7 Wheel 14 | . 28 27 21 22 22 22 14 17 13 8 7 7 7 6 7 7 7 7 Device 14 | . 3 . 9 11 11 11 12 14 9 9 22 23 24 22 23 22 20 15 Storage 9 | . 14 14 11 11 11 11 9 9 9 9 7 7 7 7 7 7 7 7 Processor 7 | . 10 14 11 11 11 11 9 9 9 9 7 7 . . . . 3 7 Hackware 4 | . . . 4 . . . 4 3 9 9 7 7 7 7 7 7 7 7 Protection 7 | . . . 7 11 11 11 9 9 8 8 6 7 11 6 7 7 7 7 Energy Gun 6 | . 3 . 6 . . . 1 . 7 23 23 22 22 6 . . 1 . Energy Cannon 3 | . . . 9 . . . . 1 . . . . . 4 7 7 9 7 Ballistic Gun 7 | . 5 . 4 22 2 22 23 22 19 2 . . . . . . . . Ballistic Cannon 2 | . 19 27 1 . . . . . . . . . . 1 1 . 1 . Launcher 1 | . . . . . . . . . . . . . . 3 5 7 2 . Naked Turns . | . . . . . . . . . . . . . . . . . . . Heaviest Build 121 | 15 31 31 66 60 60 60 78 85 80 74 80 82 84 110 121 111 119 99 Greatest Support 32 | 20 20 32 32 22 22 22 28 28 28 28 28 28 28 28 12 12 12 12 Greatest Overweight (x) 10 | 1 1 3 3 2 2 2 6 6 5 8 2 2 2 9 10 9 9 8 Average Overweight (x) 3 | . . . 1 2 2 2 3 2 2 2 2 2 2 6 8 8 8 8 Largest Inventory Capacity 20 | 8 15 15 20 20 20 20 20 20 20 20 20 20 20 20 20 20 20 20 Average Capacity 18 | 7 14 15 16 20 20 20 20 20 20 20 20 20 20 20 20 20 20 20 Most Carried 20 | 8 15 15 20 20 20 20 20 20 20 20 20 20 20 20 20 20 20 20 Average Carried 18 | 5 12 14 15 19 20 19 19 18 19 19 19 19 19 19 19 19 19 20 Final Capacity 20 | 8 15 15 20 20 20 20 20 20 20 20 20 20 20 20 20 20 20 20 Final Carried 20 | 8 15 15 19 20 20 20 20 20 20 20 19 20 20 20 20 20 20 20 Class Distribution -------------------- 60% | Mutant 22% | Tank 11% | Gunner 4% | Scavenger-Mutant Dominant Class ---------------- Mutant | -10/Materials Mutant | -10/Mines Mutant | -9/Materials Mutant | -9/Mines Mutant | -9/Exiles Mutant | -8/Mines Tank | -8/Materials Mutant | -8/Garrison Gunner | -8/Materials Gunner | -8/Storage Tank | -7/Factory Mutant | -7/Waste Tank | -7/Factory Mutant | -7/Garrison Mutant | -7/Factory Mutant | -7/Lower Caves Mutant | -7/Lower Caves Mutant | -7/Data Miner Resources | -11 -10 -10 -9 -9 -9 -8 -8 -8 -8 -8 -7 -7 -7 -7 -7 -7 -7 -7 ----------- Run | Jun Mat Min Mat Min Exi Min Mat Gar Mat Sto Fac Was Fac Gar Fac Low Low Dat Matter Collected 8310 | 320 476 348 619 19 . 132 1506 1050 813 322 268 84 335 1227 . 289 502 . Remotely 10 | . . . . . . . . . . . . . . . . . 10 . Salvage Created 9894 | 124 278 120 1847 32 . 209 1727 787 605 476 1051 . 710 1388 . 108 432 . Parts 488 | 12 18 5 109 6 . 14 95 42 32 22 30 . 23 56 . 7 17 . Haulers Intercepted 10 | . . . 5 . . . 1 . 1 3 . . . . . . . . Recyclers Shooed 2 | . . . . . . . . . . 1 . . 1 . . . . . Parts Field Recycled . | . . . . . . . . . . . . . . . . . . . Retrieved Matter . | . . . . . . . . . . . . . . . . . . . Parts Self-Destructed 23 | . . . . . . . . . . . . . . . . 5 18 . Prevented 2 | . . . . . . . . . . . . . . . . 2 . . Kills | -11 -10 -10 -9 -9 -9 -8 -8 -8 -8 -8 -7 -7 -7 -7 -7 -7 -7 -7 ------- Run | Jun Mat Min Mat Min Exi Min Mat Gar Mat Sto Fac Was Fac Gar Fac Low Low Dat Combat Hostiles Destroyed 235 | . 7 14 38 2 . 8 52 21 11 6 19 . 17 27 . 3 10 . Guns 143 | . 5 . 14 2 . 8 44 21 11 6 14 . 12 6 . . . . Cannons 52 | . 2 12 19 . . . . . . . . . . 10 . . 9 . AOE 28 | . . 2 2 . . . 7 . . . . . 5 9 . 3 . . Classes Destroyed 19 | 2 2 2 5 . . 1 1 3 1 . . . . 1 . 1 . . Worker 3 | . . 1 1 . . . . . 1 . . . . . . . . . Builder 1 | . . . . . . . 1 . . . . . . . . . . . Tunneler 5 | 3 . . . . . . 1 . . . . . 1 . . . . . Hauler 10 | . . . 5 . . . 1 . 1 3 . . . . . . . . Recycler 3 | 1 . . 1 . . . . . . . 1 . . . . . . . Minesweeper 2 | . . . . . . . . . . . . . . . . 1 1 . Operator 6 | . . . 2 . . . 3 . . 1 . . . . . . . . Watcher 14 | . 2 . 5 . . . 2 . 2 . 2 . . 1 . . . . Swarmer 47 | . . . 12 2 . 4 12 4 . . 3 . . 3 . 3 4 . Cutter 2 | . . . . . . . . 2 . . . . . . . . . . Grunt 105 | . 7 2 14 . . 2 27 9 8 2 8 . 12 11 . . 3 . Brawler 1 | . . . . . . . . . . . . . 1 . . . . . Duelist 5 | . . . 2 . . 1 . . . 1 . . . . . . 1 . Sentry 43 | . . . 10 . . . 12 4 3 3 2 . 2 6 . . 1 . Specialist 5 | . . . . . . . . . . . . . . 5 . . . . Hunter 7 | . . . . . . 1 1 . . . 2 . 1 2 . . . . Programmer 7 | . . . . . . . . 1 . . 4 . 1 . . . 1 . Behemoth 1 | . . . . . . . . 1 . . . . . . . . . . Decomposer 1 | . . . . . . . . . . . . . . . . . 1 . Assembled 12 | . . 12 . . . . . . . . . . . . . . . . Savage 1 | . . . . . . . . . 1 . . . . . . . . . Butcher 1 | . . . . . . . . . . . . . . . . . 1 . Best Kill Streak 15 | 3 2 7 6 2 . 6 15 3 2 5 3 . 7 11 . 3 4 . Combat Bots Only 13 | . 2 7 5 2 . 6 13 3 2 5 3 . 6 11 . 3 4 . Max Kills in Single Turn 5 | 1 2 2 2 1 . 2 5 1 1 1 1 . 3 3 . 2 2 . Gunslinging 1 | . 1 . 1 . . 1 1 . . . . . . . . . . . Exploded 5 | . . 2 1 . . . 5 . . . . . 2 2 . 2 . . Melee . | . . . . . . . . . . . . . . . . . . . Uniques/NPCs Destroyed . | . . . . . . . . . . . . . . . . . . . Combat | -11 -10 -10 -9 -9 -9 -8 -8 -8 -8 -8 -7 -7 -7 -7 -7 -7 -7 -7 -------- Run | Jun Mat Min Mat Min Exi Min Mat Gar Mat Sto Fac Was Fac Gar Fac Low Low Dat Damage Taken 10804 | . 321 566 1794 24 . 146 1356 1465 204 296 811 . 601 2220 . . 676 324 Core 1316 | . 49 129 351 7 . 12 166 98 48 8 64 . 107 231 . . 46 . Absorbed by Shields 1404 | . . . 90 10 . 59 516 181 27 . 152 . 184 185 . . . . Regen/Repaired (Parts) 600 | . 17 . 213 . . . 68 . . 77 199 . 26 . . . . . Core Remaining (%) 44 | 100 . 28 . . . 7 . . . 41 . . . . . . . . Volleys Fired 645 | 10 31 32 106 2 . 12 91 55 34 24 54 . 32 127 1 6 28 . Largest 3 | 2 2 2 2 2 . 2 3 3 3 3 3 . 3 3 1 1 2 . Hottest 243 | 70 70 70 120 50 . 50 150 225 131 156 156 . 161 243 105 105 180 . Shots Fired 1402 | 20 62 62 212 5 . 24 260 137 95 56 156 . 85 175 1 8 43 1 Gun 963 | 20 34 . 85 5 . 24 254 103 94 56 156 . 77 55 . . . . Cannon 389 | . 28 59 127 . . . . 34 . . . . . 90 1 6 43 1 Launcher 50 | . . 3 . . . . 6 . 1 . . . 8 30 . 2 . . Special . | . . . . . . . . . . . . . . . . . . . Kinetic 673 | 10 60 59 38 5 . 24 231 121 69 9 . . . 35 . . 12 . Thermal 601 | 10 2 . 119 . . . . 16 25 47 156 . 77 110 1 6 31 1 Explosive 21 | . . 3 . . . . 6 . 1 . . . 8 3 . . . . Electromagnetic 107 | . . . 55 . . . 23 . . . . . . 27 . 2 . . Robot Hit Streak 32 | 7 8 5 21 6 . 5 12 30 12 12 27 . 32 13 . 2 18 . Robot Miss Streak 15 | 2 5 5 6 1 . 6 15 6 11 3 4 . 3 3 1 1 1 . Penetration Max . | . . . . . . . . . . . . . . . . . . . Secondary Targets 16 | . 1 . 4 . . 3 6 1 . . . . . 1 . . . . Max Gunslinging Chain 1 | . 1 . 1 . . 1 1 1 . . . . . 1 . . . . Shots Hit Robots 961 | 14 41 28 156 2 . 19 200 110 79 32 113 . 66 77 . 3 21 . Core Hits 661 | 5 15 25 63 2 . 16 166 117 86 18 35 . 43 54 . 3 13 . Critical Kills 7 | . 1 . 2 . . . . 1 . . . . . 1 . 1 1 . Critical Parts Destroyed 3 | . . . 1 . . . 1 . . . . . . 1 . . . . Critical Strikes 34 | . 3 . 3 . . . 1 1 3 1 14 . 1 3 . 1 3 . Burn 20 | . . . . . . . . . 3 1 14 . 1 1 . . . . Meltdown 5 | . . . 2 . . . . 1 . . . . . . . 1 1 . Destroy 4 | . 1 . . . . . 1 . . . . . . 2 . . . . Blast 4 | . 2 . . . . . . . . . . . . . . . 2 . Smash 1 | . . . 1 . . . . . . . . . . . . . . . Melee Attacks 49 | . . . 4 . . . 7 38 . . . . . . . . . . Impact 49 | . . . 4 . . . 7 38 . . . . . . . . . . Slashing . | . . . . . . . . . . . . . . . . . . . Piercing . | . . . . . . . . . . . . . . . . . . . Sneak Attacks . | . . . . . . . . . . . . . . . . . . . Combat Hostiles . | . . . . . . . . . . . . . . . . . . . Follow-up Attacks . | . . . . . . . . . . . . . . . . . . . Damage Inflicted 24183 | 181 634 698 3136 33 . 298 5109 2221 1610 674 2346 . 2180 3901 . 186 976 . Guns 14042 | 181 298 . 1062 33 . 298 4202 1584 1424 674 2346 . 1202 738 . . . . Cannons 5896 | . 336 520 1701 . . . . 637 . . . . . 1616 . 110 976 . Explosions 4070 | . . 178 198 . . . 907 . 186 . . . 978 1547 . 76 . . Melee 175 | . . . 175 . . . . . . . . . . . . . . . Ramming . | . . . . . . . . . . . . . . . . . . . Kinetic 10595 | 79 621 520 634 33 . 298 3784 2105 1062 82 . . . 981 . . 396 . Thermal 8702 | 102 13 . 1813 . . . . 116 362 592 2346 . 1202 1466 . 110 580 . Explosive 2989 | . . 178 . . . . 907 . 186 . . . 978 740 . . . . Electromagnetic 1722 | . . . 514 . . . 418 . . . . . . 714 . 76 . . Impact 175 | . . . 175 . . . . . . . . . . . . . . . Slashing . | . . . . . . . . . . . . . . . . . . . Piercing . | . . . . . . . . . . . . . . . . . . . Highest Corruption 14 | . . . 1 1 1 1 . 8 8 8 13 13 14 14 14 14 14 14 Average Corruption 8 | . . . 1 1 1 1 . 4 8 8 8 13 13 14 14 14 14 14 Corruption Purged . | . . . . . . . . . . . . . . . . . . . Corruption Blocked . | . . . . . . . . . . . . . . . . . . . Effects 553 | . . . 33 5 4 3 . 27 38 39 65 17 28 96 8 88 96 6 Message Errors 150 | . . . 5 . 1 . . 12 13 13 19 7 4 27 . 23 24 2 Matter Fused 130 | . . . 9 . 1 2 . 5 5 14 11 2 6 24 3 20 26 2 Heat Flow Errors 61 | . . . 1 1 . 1 . 3 7 3 8 3 4 9 1 11 9 . Energy Discharges 64 | . . . 5 1 2 . . 1 4 6 5 2 6 7 2 13 10 . Parts Rejected 3 | . . . . . . . . . . . 1 . 1 1 . . . . Parts Fused 7 | . . . . . . . . . . 1 1 . . 2 . 2 1 . Data Loss (minor) 58 | . . . 4 . . . . 2 3 2 6 2 2 9 1 14 12 1 Data Loss (major) 21 | . . . 3 . . . . 2 1 . 3 . . 5 1 3 3 . Misfires 30 | . . . 4 1 . . . 2 3 . 4 . 2 4 . 2 7 1 Alerts 16 | . . . 1 2 . . . . 1 . 3 1 1 5 . . 2 . Misdirections 1 | . . . . . . . . . . . 1 . . . . . . . Weapon Failures 12 | . . . 1 . . . . . 1 . 3 . 2 3 . . 2 . Overload Shots 7 | . . . . . . . . 1 . . 5 . 1 . . . . . Overflow Damage 439 | . 12 33 97 . . . 23 . . . . . 51 124 . 31 68 . Projectiles 232 | . 12 33 20 . . . . . . . . . . 68 . 31 68 . Explosions 132 | . . . 2 . . . 23 . . . . . 51 56 . . . . Melee 75 | . . . 75 . . . . . . . . . . . . . . . Knockbacks 25 | . 7 7 2 . . . . 1 . . . . . 7 . . 1 . Impact 1 | . . . 1 . . . . . . . . . . . . . . . Kinetic 23 | . 7 7 1 . . . . 1 . . . . . 6 . . 1 . Secondary 1 | . . . . . . . . . . . . . . 1 . . . . Self-Inflicted Damage 240 | . . . 81 . . . 45 . . . . . . 114 . . . . Shots 9 | . . . 3 . . . 1 . . . . . . 5 . . . . Rammed . | . . . . . . . . . . . . . . . . . . . Targets Rammed . | . . . . . . . . . . . . . . . . . . . Kicked . | . . . . . . . . . . . . . . . . . . . Crushed . | . . . . . . . . . . . . . . . . . . . Highest Temperature 658 | 45 81 72 149 95 . 216 236 311 359 242 255 186 243 658 . 88 392 72 Average Temperature 78 | 18 19 21 37 52 . 57 61 84 74 52 68 87 49 148 . 35 150 39 Received Heat Transfer 3229 | . 246 35 553 . . 43 610 247 114 63 257 . 202 745 . . 114 . Effects 17 | . . . . . . . . 2 1 . . . . 12 . . 2 . Shutdowns 2 | . . . . . . . . . . . . . . 2 . . . . Energy Bleed 2 | . . . . . . . . . . . . . . 2 . . . . Interference 6 | . . . . . . . . 2 . . . . . 2 . . 2 . Matter Decay 2 | . . . . . . . . . 1 . . . . 1 . . . . Damage (minor) 1 | . . . . . . . . . . . . . . 1 . . . . Damage (major) 4 | . . . . . . . . . . . . . . 4 . . . . Siege Activations . | . . . . . . . . . . . . . . . . . . . Robots Corrupted 5 | . . . 1 . . . 2 . . . . . . 2 . . . . Combat Hostiles 4 | . . . 1 . . . 1 . . . . . . 2 . . . . Parts Fried 10 | . . . 4 . . . 3 . . . . . . 3 . . . . Impact Corruptions 3 | . . . 3 . . . . . . . . . . . . . . . Robots Melted 10 | . . . 2 . . . . 1 . . 5 . . . . 1 1 . Combat Hostiles 7 | . . . 1 . . . . . . . 5 . . . . . 1 . Parts Melted 54 | . . . 11 . . . . 3 1 1 26 . 5 6 . 1 . . Heat Transferred 16465 | 296 37 . 3395 . . . . 187 814 1147 5180 . 2385 2358 . 111 555 . Parts Sabotaged . | . . . . . . . . . . . . . . . . . . . Parts Stolen . | . . . . . . . . . . . . . . . . . . . Parts Stripped . | . . . . . . . . . . . . . . . . . . . Power Chain Reactions 9 | . . . 5 . . . . . . . . . . 4 . . . . Missiles Intercepted . | . . . . . . . . . . . . . . . . . . . Alert | -11 -10 -10 -9 -9 -9 -8 -8 -8 -8 -8 -7 -7 -7 -7 -7 -7 -7 -7 ------- Run | Jun Mat Min Mat Min Exi Min Mat Gar Mat Sto Fac Was Fac Gar Fac Low Low Dat Peak Influence 1990 | 20 170 104 424 102 . 205 919 1889 1292 773 425 148 390 1990 1100 . . . Initial 1044 | . 13 19 40 102 . . 1 597 920 504 214 148 . 256 1044 . . . Average 503 | 8 59 29 253 50 . 76 543 1198 1124 585 199 140 223 1088 1055 . . . Maximum Alert Level 5 | . . . 2 . . 1 3 5 4 3 2 . 1 5 4 . . . Low Security (%) 35 | 100 100 100 29 100 . 70 21 . . . 47 100 31 . . . . . Level 1 23 | . . . 63 . . 29 13 . . 2 51 . 68 15 . . . . Level 2 12 | . . . 6 . . . 23 12 . 93 1 . . 15 . . . . Level 3 13 | . . . . . . . 42 32 29 4 . . . 18 97 . . . Level 4 10 | . . . . . . . . 33 70 . . . . 31 2 . . . Level 5 4 | . . . . . . . . 22 . . . . . 19 . . . . High Security . | . . . . . . . . . . . . . . . . . . . Max Security . | . . . . . . . . . . . . . . . . . . . Sterilizations 1 | . . . . . . . 1 . . . . . . . . . . . Squads Dispatched 33 | . 1 . 3 . . . 14 . 1 1 10 . 2 . 1 . . . Investigation 7 | . 1 . 2 . . . 2 . . . 2 . . . . . . . Extermination 4 | . . . . . . . . . . . 3 . 1 . . . . . Reinforcement 10 | . . . 1 . . . 4 . . 1 2 . 1 . 1 . . . Assault 3 | . . . . . . . 2 . 1 . . . . . . . . . Garrison 9 | . . . . . . . 6 . . . 3 . . . . . . . Intercept . | . . . . . . . . . . . . . . . . . . . Searches Triggered . | . . . . . . . . . . . . . . . . . . . Construction Impeded 2 | . . . . . . . 1 . . . . . 1 . . . . . Haulers Reinforced . | . . . . . . . . . . . . . . . . . . . Active Scanning Responses . | . . . . . . . . . . . . . . . . . . . Cargo Convoy Interrupts . | . . . . . . . . . . . . . . . . . . . Stealth | -11 -10 -10 -9 -9 -9 -8 -8 -8 -8 -8 -7 -7 -7 -7 -7 -7 -7 -7 --------- Run | Jun Mat Min Mat Min Exi Min Mat Gar Mat Sto Fac Was Fac Gar Fac Low Low Dat Distress Signals 17 | . 1 . 4 . . . 3 1 3 1 2 . . 2 . . . . Communications Jammed . | . . . . . . . . . . . . . . . . . . . Distress Signals . | . . . . . . . . . . . . . . . . . . . Times Spotted 343 | . 18 17 50 3 . 8 68 24 28 19 31 . 18 43 . 1 11 4 Peak Tracking Total 10 | . 4 7 6 3 . 4 10 5 4 5 4 . 4 10 2 1 5 4 Tactical Retreats 21 | . 1 2 . 1 . . 2 1 1 . 1 . . 12 . . . . Traps | -11 -10 -10 -9 -9 -9 -8 -8 -8 -8 -8 -7 -7 -7 -7 -7 -7 -7 -7 ------- Run | Jun Mat Min Mat Min Exi Min Mat Gar Mat Sto Fac Was Fac Gar Fac Low Low Dat Traps Triggered 30 | . . . 1 . . . 2 12 5 . 2 . 1 6 1 . . . Indirectly 4 | . . . . . . . . . . . . . . 4 . . . . Trap Hack Attempts . | . . . . . . . . . . . . . . . . . . . Triggered . | . . . . . . . . . . . . . . . . . . . Disarmed . | . . . . . . . . . . . . . . . . . . . Reprogrammed 13 | . 13 . . . . . . . . . . . . . . . . . Reused 3 | . 2 . . . . . . . . . . . . 1 . . . . Traps Extracted . | . . . . . . . . . . . . . . . . . . . Installed 5 | . . . . 2 . . . . . . . . . 1 . 2 . . Triggered 4 | . 2 . . . . . . . . . . . . 1 . . 1 . Most Traps Carried 4 | . . . . 1 . . . 4 4 4 4 4 4 4 . 2 2 . Machines | -11 -10 -10 -9 -9 -9 -8 -8 -8 -8 -8 -7 -7 -7 -7 -7 -7 -7 -7 ---------- Run | Jun Mat Min Mat Min Exi Min Mat Gar Mat Sto Fac Was Fac Gar Fac Low Low Dat Machines Disabled 32 | . . 1 . . . 1 2 8 1 3 3 . 3 8 . . 1 1 Max in Single Turn 2 | . . 1 . . . 1 1 1 . 1 1 . 2 1 . . 1 1 Garrison Relay 9 | . . . . . . . . 4 . . . . . 5 . . . . Machines Repaired . | . . . . . . . . . . . . . . . . . . . Machines Sabotaged . | . . . . . . . . . . . . . . . . . . . Overloaded Fab Kills . | . . . . . . . . . . . . . . . . . . . Hacking | -11 -10 -10 -9 -9 -9 -8 -8 -8 -8 -8 -7 -7 -7 -7 -7 -7 -7 -7 --------- Run | Jun Mat Min Mat Min Exi Min Mat Gar Mat Sto Fac Was Fac Gar Fac Low Low Dat Machines Accessed 101 | . 11 . 17 1 1 . 14 4 10 10 19 . 5 4 . . 1 4 Terminals 59 | . 8 . 11 . . . 7 4 7 8 8 . 2 4 . . . . Fabricators 5 | . . . . . . . . . . . 5 . . . . . . . Repair Stations 11 | . 1 . 2 . . . 2 . . 1 3 . 2 . . . . . Recycling Units 9 | . 2 . 2 . . . 2 . 1 1 1 . . . . . . . Scanalyzers 7 | . . . 2 . . . 2 . 2 . 1 . . . . . . . Garrison Access 3 | . . . . . . . 1 . . . 1 . 1 . . . . . Total Hacks 379 | . 30 . 74 1 2 . 45 12 62 42 55 . 16 7 . . 4 29 Successful 222 | . 18 . 49 1 2 . 28 1 31 22 28 . 6 3 . . 4 29 Failed 157 | . 12 . 25 . . . 17 11 31 20 27 . 10 4 . . . . Catastrophic 30 | . 2 . 4 . . . 4 3 5 3 5 . 2 2 . . . . Database Lockouts . | . . . . . . . . . . . . . . . . . . . Manual 137 | . 17 . 39 . . . 16 . 16 22 24 . 3 . . . . . Terminals 190 | . 23 . 42 . . . 17 12 28 28 27 . 6 7 . . . . Fabricators 15 | . . . . . . . . . . . 15 . . . . . . . Repair Stations 39 | . 3 . 9 . . . 4 . . 7 7 . 9 . . . . . Recycling Units 31 | . 4 . 8 . . . 7 . 4 7 1 . . . . . . . Scanalyzers 63 | . . . 15 . . . 14 . 30 . 4 . . . . . . . Garrison Access 5 | . . . . . . . 3 . . . 1 . 1 . . . . . Terminal Hacks 78 | . 8 . 10 1 2 . 2 1 4 7 6 . 1 3 . . 4 29 Record 17 | . . . . . 2 . . . . . . . . . . . 4 11 Part Schematic 9 | . . . . . . . . . . . . . . . . . . 9 Robot Schematic 6 | . . . . . . . . . . . . . . . . . . 6 Robot Analysis 10 | . 4 . 4 . . . . . 1 1 . . . . . . . . Prototype ID Bank 5 | . . . 1 . . . . . . 1 . . . . . . . 3 Open Door 2 | . . . . 1 . . . . . 1 . . . . . . . . Branch Access Points 2 | . . . 1 . . . 1 . . . . . . . . . . . Emergency Access Points 1 | . . . . . . . . . . . . . . 1 . . . . Terminal Index 5 | . . . 1 . . . 1 . 1 1 1 . . . . . . . Garrison Index 1 | . . . . . . . . . . . 1 . . . . . . . Unreport Threat 4 | . . . 1 . . . . . 1 2 . . . . . . . . Locate Traps 7 | . 1 . . . . . . . 1 1 3 . 1 . . . . . Reprogram Traps 3 | . 3 . . . . . . . . . . . . . . . . . Security Status 1 | . . . 1 . . . . . . . . . . . . . . . Hauler Manifests 1 | . . . 1 . . . . . . . . . . . . . . . Registered Prototypes 1 | . . . . . . . . . . . 1 . . . . . . . Garrison Registry 1 | . . . . . . . . . . . . . . 1 . . . . Patrol Navigation 2 | . . . . . . . . 1 . . . . . 1 . . . . Fabricator Hacks 2 | . . . . . . . . . . . 2 . . . . . . . Network Status 1 | . . . . . . . . . . . 1 . . . . . . . Build 1 | . . . . . . . . . . . 1 . . . . . . . Repair Station Hacks 25 | . 2 . 7 . . . 3 . . 5 5 . 3 . . . . . Scan Component 15 | . 1 . 4 . . . 2 . . 3 3 . 2 . . . . . Repair 10 | . 1 . 3 . . . 1 . . 2 2 . 1 . . . . . Recycling Unit Hacks 10 | . 2 . 3 . . . 2 . 1 2 . . . . . . . . Report Inventory 6 | . 2 . 2 . . . 1 . . 1 . . . . . . . . Retrieve Components 4 | . . . 1 . . . 1 . 1 1 . . . . . . . . Scanalyzer 56 | . . . 15 . . . 14 . 23 . 4 . . . . . . . Insert Component 22 | . . . 6 . . . 5 . 10 . 1 . . . . . . . Analyze 34 | . . . 9 . . . 9 . 13 . 3 . . . . . . . Garrison Access Hacks 3 | . . . . . . . 1 . . . 1 . 1 . . . . . Unlock Access 3 | . . . . . . . 1 . . . 1 . 1 . . . . . Unauthorized Hacks 48 | . 6 . 14 . . . 6 . 3 8 10 . 1 . . . . . Terminals 29 | . 5 . 10 . . . 3 . 2 4 4 . 1 . . . . . Track 4 | . . . 2 . . . 1 . . 1 . . . . . . . . Assimilate 7 | . 2 . 4 . . . . . . . 1 . . . . . . . Botnet 15 | . 2 . 3 . . . 2 . 1 3 3 . 1 . . . . . Operators 3 | . 1 . 1 . . . . . 1 . . . . . . . . . Fabricators 6 | . . . . . . . . . . . 6 . . . . . . . Report 1 | . . . . . . . . . . . 1 . . . . . . . Prioritize 1 | . . . . . . . . . . . 1 . . . . . . . Liberate 3 | . . . . . . . . . . . 3 . . . . . . . Haulers 1 | . . . . . . . . . . . 1 . . . . . . . Repair Stations . | . . . . . . . . . . . . . . . . . . . Recycling Units 13 | . 1 . 4 . . . 3 . 1 4 . . . . . . . . Monitor 1 | . . . . . . . . . . 1 . . . . . . . . Reject 6 | . . . 2 . . . 2 . 1 1 . . . . . . . . Recyclers 2 | . . . 1 . . . . . . 1 . . . . . . . . Mask 3 | . . . 1 . . . 1 . . 1 . . . . . . . . Tunnel 1 | . 1 . . . . . . . . . . . . . . . . . Scanalyzers . | . . . . . . . . . . . . . . . . . . . Garrison Access . | . . . . . . . . . . . . . . . . . . . Data Cores Recovered 3 | . . . . . . . 2 . . 1 . . . . . . . . Used 2 | . . . . . . . 1 . . 1 . . . . . . . . Hacking Detections 83 | . 10 . 15 . . . 14 3 10 8 16 . 4 3 . . . . Full Trace Events 8 | . . . 2 . . . 1 2 1 . 2 . . . . . . . Feedback Events 2 | . . . 1 . . . . 1 . . . . . . . . . . Corruption 2 | . . . 1 . . . . 1 . . . . . . . . . . Feedback Blocked . | . . . . . . . . . . . . . . . . . . . Robot Schematics Acquired 6 | . . . . . . . . . . . . . . . . . . 6 Robots Built 1 | . . . . . . . . . . . 1 . . . . . . . Authchips . | . . . . . . . . . . . . . . . . . . . Time 40 | . . . . . . . . . . . 40 . . . . . . . Total Robot Build Rating 1 | . . . . . . . . . . . 1 . . . . . . . Part Schematics Acquired 28 | . . . 5 . . . 4 . 9 . 1 . . . . . . 9 Parts Built . | . . . . . . . . . . . . . . . . . . . Authchips . | . . . . . . . . . . . . . . . . . . . Time . | . . . . . . . . . . . . . . . . . . . Total Part Build Rating . | . . . . . . . . . . . . . . . . . . . Parts Repaired 10 | . 1 . 3 . . . 1 . . 2 2 . 1 . . . . . Time 388 | . 26 . 114 . . . 32 . . 102 75 . 39 . . . . . Parts Recycled . | . . . . . . . . . . . . . . . . . . . Recycled Matter . | . . . . . . . . . . . . . . . . . . . Retrieved Matter . | . . . . . . . . . . . . . . . . . . . Retrieved Components 18 | . . . 5 . . . 6 . 4 3 . . . . . . . . Parts Scanalyzed 21 | . . . 6 . . . 5 . 9 . 1 . . . . . . . Part Schematics Acquired 19 | . . . 5 . . . 4 . 9 . 1 . . . . . . . Parts Damaged . | . . . . . . . . . . . . . . . . . . . Bothacking | -11 -10 -10 -9 -9 -9 -8 -8 -8 -8 -8 -7 -7 -7 -7 -7 -7 -7 -7 ------------ Run | Jun Mat Min Mat Min Exi Min Mat Gar Mat Sto Fac Was Fac Gar Fac Low Low Dat Used RIF Installer . | . . . . . . . . . . . . . . . . . . . Robots Hacked . | . . . . . . . . . . . . . . . . . . . Non-combat . | . . . . . . . . . . . . . . . . . . . Combat . | . . . . . . . . . . . . . . . . . . . Robot Hacks Applied . | . . . . . . . . . . . . . . . . . . . Relay Couplers Released 34 | . . . . . . . . 16 . . . . . 18 . . . . Machine Destruction 34 | . . . . . . . . 16 . . . . . 18 . . . . Fabnet Peak Effective % . | . . . . . . . . . . . . . . . . . . . Robots Rewired 7 | . . . . . . . . 4 . . . . . 3 . . . . Allies Hacked . | . . . . . . . . . . . . . . . . . . . Hacks Repelled . | . . . . . . . . . . . . . . . . . . . Allies | -11 -10 -10 -9 -9 -9 -8 -8 -8 -8 -8 -7 -7 -7 -7 -7 -7 -7 -7 -------- Run | Jun Mat Min Mat Min Exi Min Mat Gar Mat Sto Fac Was Fac Gar Fac Low Low Dat Total Allies 20 | . 1 . 1 . . . . 4 . 2 7 . . 3 . . 2 . Largest Group 4 | . 1 1 1 1 . . . 4 4 1 3 . . 3 3 . 2 . Highest-Rated Group 113 | . 10 10 10 10 . . . 113 113 100 100 . . 60 60 . 50 . Highest-Rated Ally 100 | . 10 10 10 10 . . . 31 31 100 100 . . 20 20 . 25 . Total Orders 39 | . 2 6 12 3 . . 3 . 2 . 7 . . . 1 1 2 . STAY 14 | . 1 3 6 2 . . 1 . . . . . . . . 1 . . FOLLOW 12 | . 1 3 6 1 . . 1 . . . . . . . . . . . EXPLORE 7 | . . . . . . . . . 1 . 6 . . . . . . . RETURN 6 | . . . . . . . 1 . 1 . 1 . . . 1 . 2 . Ally Attacks 152 | . . . . . . . . 8 62 31 35 . . . 16 . . . Total Damage 2990 | . . . . . . . . 105 991 1086 371 . . . 437 . . . Kills 29 | . . . . . . . . 1 11 13 2 . . . 2 . . . Allies Corrupted . | . . . . . . . . . . . . . . . . . . . Allies Melted . | . . . . . . . . . . . . . . . . . . . Intel | -11 -10 -10 -9 -9 -9 -8 -8 -8 -8 -8 -7 -7 -7 -7 -7 -7 -7 -7 ------- Run | Jun Mat Min Mat Min Exi Min Mat Gar Mat Sto Fac Was Fac Gar Fac Low Low Dat Robot Analysis Total 10 | . 4 . 4 . . . . . 1 1 . . . . . . . . Derelict Logs Recovered 5 | . . 1 . 2 . . . . . . . . . . . 2 . . Drone Launches 16 | . . . . . . . 1 1 1 . 6 . . . 1 3 3 . Drone Recoveries 14 | . . . . . . . 1 . 2 . 4 . . . 1 2 3 1 Exploration | -11 -10 -10 -9 -9 -9 -8 -8 -8 -8 -8 -7 -7 -7 -7 -7 -7 -7 -7 ------------- Run | Jun Mat Min Mat Min Exi Min Mat Gar Mat Sto Fac Was Fac Gar Fac Low Low Dat Turns Passed 25914 | 117 1732 798 3961 870 430 742 2606 2121 1042 1236 1998 421 688 2440 182 2111 2236 183 Spaces Moved 15534 | 52 1573 665 2747 681 371 582 1375 1219 606 650 1229 313 408 1011 79 917 970 86 Core 5 | 5 . . . . . . . . . . . . . . . . . . Treads . | . . . . . . . . . . . . . . . . . . . Legs 31 | 31 . . . . . . . . . . . . . . . . . . Wheels 15497 | 16 1573 665 2747 681 371 582 1375 1219 606 649 1229 313 408 1011 79 917 970 86 Hover 1 | . . . . . . . . . . 1 . . . . . . . . Flight . | . . . . . . . . . . . . . . . . . . . Fastest Speed 50 | 50 80 95 95 115 115 115 115 120 120 130 130 130 130 130 210 210 180 210 Average Speed 135 | 108 93 98 105 115 115 115 137 130 132 130 130 130 130 191 210 224 216 210 Slowest Speed 450 | 190 95 125 135 115 115 115 180 180 165 450 130 130 130 225 240 225 225 210 Overloaded Moves . | . . . . . . . . . . . . . . . . . . . Propulsion Burnouts . | . . . . . . . . . . . . . . . . . . . Robots Hopped . | . . . . . . . . . . . . . . . . . . . Cave-ins Triggered . | . . . . . . . . . . . . . . . . . . . Exploration Rate (%) 72 | 5 99 96 98 98 72 96 82 83 65 86 42 91 16 86 3 88 94 70 Regions Visited 18 Branch Regions 8 Pre-discovered Areas 6 | . 1 1 . . 1 . . . . . . . . . . 1 1 1 Known Exits Taken 7 | . . . 1 . . 1 1 . 1 . . . 1 . 1 1 . . Unknown Exits Taken 7 | 1 1 1 . 1 1 . . . . 1 . . . . . . 1 . Scrap Searched 18 | . . 1 . 3 . 1 . . . . . . . . . 4 9 . Spaces Dug 42 | . . . . . . . 3 17 . . 4 . 1 8 . . 9 . Terrain Destroyed 233 | . . 21 22 . . . 43 17 5 . 4 . 26 70 1 3 21 . Melee 20 | . . . . . . . 3 17 . . . . . . . . . . Projectile 54 | . . 1 2 . . . . . . . 4 . 1 21 1 3 21 . AOE 159 | . . 20 20 . . . 40 . 5 . . . 25 49 . . . . Terrain Rammed . | . . . . . . . . . . . . . . . . . . . Walls Destroyed . | . . . . . . . . . . . . . . . . . . . Machines Disabled . | . . . . . . . . . . . . . . . . . . . Actions | -11 -10 -10 -9 -9 -9 -8 -8 -8 -8 -8 -7 -7 -7 -7 -7 -7 -7 -7 --------- Run | Jun Mat Min Mat Min Exi Min Mat Gar Mat Sto Fac Was Fac Gar Fac Low Low Dat Total 19069 | 89 1780 742 3583 766 374 632 1873 1571 768 996 1512 328 489 1344 95 964 1075 88 Wait 1954 | 5 145 30 625 73 . 33 299 95 99 285 182 . 19 30 2 13 19 . Move 15518 | 51 1572 664 2746 680 370 581 1375 1217 605 649 1229 312 408 1010 78 916 969 86 Hop . | . . . . . . . . . . . . . . . . . . . Pick Up 189 | 10 15 5 34 5 . 3 26 14 2 6 10 5 3 30 1 8 12 . Fast Attach 110 | 9 . . 12 . 2 . 9 . 12 11 10 3 11 13 . 5 12 1 Attach 90 | . 4 5 16 . . . 13 9 1 4 5 . 1 21 1 1 9 . Detach 17 | . . 1 2 . . . 1 1 1 2 . . . 5 . . 4 . Swap 121 | . 5 4 17 . . . 23 29 9 1 7 1 8 13 2 . 2 . Drop 198 | 4 8 1 21 4 2 3 29 8 5 14 15 7 7 34 2 13 20 1 Fire 645 | 10 31 32 106 2 . 12 91 55 34 24 54 . 32 127 1 6 28 . Melee 49 | . . . 4 . . . 7 38 . . . . . . . . . . Ram . | . . . . . . . . . . . . . . . . . . . Kick . | . . . . . . . . . . . . . . . . . . . Crush . | . . . . . . . . . . . . . . . . . . . Escape Stasis 105 | . . . . . . . . 80 . . . . . 17 8 . . . Rewire 68 | . . . . . . . . 25 . . . . . 43 . . . . Trap 5 | . . . . 2 . . . . . . . . . 1 . 2 . . Miscellaneous . | . . . . . . . . . . . . . . . . . . . Route ------- -11/Junkyard -10/Materials (discovered 5 exits: *Mat x3 / [*Min x2]) -10/Mines (discovered 2 exits: *Mat x2) -9/Materials (discovered 4 exits: *Mat x3 / *Min) -9/Mines (discovered 3 exits: *Mat x2 / *Exi) -9/Exiles -8/Mines (discovered 2 exits: *Mat x2) -8/Materials (discovered 5 exits: *Fac x2 / *Sto x2 / Gar) -8/Garrison (discovered 3 exits: *Mat x3) -8/Materials (discovered 2 exits: *Fac / *Sto) -8/Storage -7/Factory (discovered 2 exits: *Fac / Gar) -7/Waste -7/Factory -7/Garrison (discovered 3 exits: [*Fac x3]) -7/Factory -7/Lower Caves -7/Lower Caves (discovered 2 exits: *Fac / *Dat) -7/Data Miner (discovered 1 exit: *Pro) History --------- Turn | Location | Event 19 | -11/Junkyard | Discovered new exit (range 13) 118 | -11/Junkyard | Entered Materials 154 | -10/Materials | Discovered new exit (range 7) 273 | -10/Materials | Discovered new exit (range 12) 307 | -10/Materials | Build established: Mutant 713 | -10/Materials | Discovered new exit (range 16) 1152 | -10/Materials | Discovered new exit (range 6) 1206 | -10/Materials | Discovered new exit (range 15) 1318 | -10/Materials | Repaired Com. Wheel 1850 | -10/Materials | Entered Mines 1850 | -10/Mines | Accompanied by 1 ally 1851 | -10/Mines | Assembled infested the area 1851 | -10/Mines | Met a Derelict bent on vengeance 1856 | -10/Mines | Assisted by a Guerilla fighting off Assembled 1858 | -10/Mines | Discovered new exit (range 12) 1893 | -10/Mines | Core integrity fell below 50% 1940 | -10/Mines | Destroyed 7 combat bots 2310 | -10/Mines | Discovered new exit (range 11) 2395 | -10/Mines | Learned location of Zion (-6) 2648 | -10/Mines | Entered Materials 2648 | -9/Materials | Accompanied by 1 ally 2648 | -9/Materials | Evolved 2 slots: Utility x2 2925 | -9/Materials | Discovered new exit (range 7) 3188 | -9/Materials | Build established: Scavenger-Mutant 3493 | -9/Materials | Identified exit to Mines 3658 | -9/Materials | Lost 3 parts (1n1u1w) 3722 | -9/Materials | Discovered new exit (range 4) 4312 | -9/Materials | Build established: Mutant 4625 | -9/Materials | Core integrity fell below 50% 4719 | -9/Materials | Core integrity fell below 20% 5018 | -9/Materials | Repaired Arm. Wheel 5063 | -9/Materials | Discovered new exit (range 9) 5222 | -9/Materials | Discovered new exit (range 3) 6245 | -9/Materials | Repaired Fission Core 6501 | -9/Materials | Repaired Hrd. Light Armor Plating? 6609 | -9/Materials | Entered Mines 6609 | -9/Mines | Accompanied by 1 ally 6828 | -9/Mines | Discovered new exit (range 3) 6860 | -9/Mines | Found a hidden stash of uninstalled traps 7035 | -9/Mines | Found the Drone Emporium 7042 | -9/Mines | Found Prototype Device 7177 | -9/Mines | Learned Materials garrison access intel 7227 | -9/Mines | Received a Rocket Launcher from a helpful Derelict 7266 | -9/Mines | Deemed a non-threat by the Exiles lab entrance 7266 | -9/Mines | Discovered new exit (range 5) 7369 | -9/Mines | Identified exit to Materials 7479 | -9/Mines | Entered Exiles 7512 | -9/Exiles | Met 8R-AWN 7531 | -9/Exiles | Met EX-HEX 7585 | -9/Exiles | Met EX-DEC 7692 | -9/Exiles | Visited The Gauntlet 7755 | -9/Exiles | Met EX-BIN 7894 | -9/Exiles | Discovered new exit (range 14) 7909 | -9/Exiles | Entered Mines 8095 | -8/Mines | Discovered exit to Materials (range 6) 8251 | -8/Mines | Discovered exit to Materials (range 8) 8651 | -8/Mines | Entered Materials 8651 | -8/Materials | Evolved 2 slots: Utility x1, Weapon x1 8652 | -8/Materials | Loaded intel: 1 garrison access location 8665 | -8/Materials | Discovered new exit (range 12) 8782 | -8/Materials | Identified Sensor Drone Bay 8951 | -8/Materials | Build established: Tank 9072 | -8/Materials | Discovered new exit (range 10) 9572 | -8/Materials | Discovered new exit (range 7) 9589 | -8/Materials | Destroyed 13 combat bots 9958 | -8/Materials | Garrison activated, responded to threat 10230 | -8/Materials | Identified exit to Storage 10251 | -8/Materials | First assault squad dispatched 10329 | -8/Materials | Garrison activated, responded to threat 10727 | -8/Materials | Build established: Mutant 10736 | -8/Materials | Repaired Arm. Wheel 10772 | -8/Materials | Found Powered Armor 10774 | -8/Materials | Found Powered Armor 10777 | -8/Materials | Found Powered Armor 10782 | -8/Materials | Found Powered Armor 11134 | -8/Materials | Build established: Tank 11167 | -8/Materials | Sterilization system engaged 11167 | -8/Materials | Non-combat units ordered to evacuate 11257 | -8/Materials | Identified exit to Garrison 11257 | -8/Materials | Entered Garrison 11532 | -8/Garrison | Garrison Relay disabled 11632 | -8/Garrison | Triggered checkpoint 11696 | -8/Garrison | Triggered checkpoint 11776 | -8/Garrison | Garrison Relay disabled 11847 | -8/Garrison | Discovered new exit (range 10) 12002 | -8/Garrison | Triggered checkpoint 12028 | -8/Garrison | Triggered checkpoint 12097 | -8/Garrison | Garrison Relay disabled 12219 | -8/Garrison | Discovered new exit (range 9) 12265 | -8/Garrison | Spotted B-75 Beast 12314 | -8/Garrison | Destroyed B-75 Beast 12340 | -8/Garrison | Lost 4 parts (1n1u2w) 12594 | -8/Garrison | Build established: Gunner 12702 | -8/Garrison | Discovered new exit (range 12) 12905 | -8/Garrison | Garrison Relay disabled 13206 | -8/Garrison | Attempted to access garrison exit controls, blocked by remote lockdown 13378 | -8/Garrison | Identified exit to Materials 13378 | -8/Garrison | Entered Materials 13378 | -8/Materials | Accompanied by 5 allies 13778 | -8/Materials | First assault squad dispatched 13916 | -8/Materials | Core integrity fell below 50% 13924 | -8/Materials | Discovered exit to Storage (range 36) 13931 | -8/Materials | Discovered new exit (range 48) 14420 | -8/Materials | Entered Storage 14602 | -8/Storage | Met 01-MTF 14811 | -8/Storage | Discovered new exit (range 16) 15123 | -8/Storage | Repaired Arm. Wheel 15194 | -8/Storage | Repaired Cld. Pulse Rifle 15253 | -8/Storage | Build established: Mutant 15577 | -8/Storage | Build established: Gunner 15656 | -8/Storage | Entered Factory 15656 | -7/Factory | Accompanied by 1 ally (01-MTF) 15656 | -7/Factory | Evolved 2 slots: Utility x2 15661 | -7/Factory | 01-MTF left 15930 | -7/Factory | Discovered new exit (range 42) 15956 | -7/Factory | Build established: Tank 16135 | -7/Factory | Repaired Powered Armor 16923 | -7/Factory | System corruption reached 10% 16953 | -7/Factory | Fabricated K-01 Serf? 17153 | -7/Factory | Identified exit to Garrison 17223 | -7/Factory | Build established: Gunner 17249 | -7/Factory | Garrison activated, responded to threat 17575 | -7/Factory | Repaired Broken Powered Armor 17654 | -7/Factory | Sucked down chute 17654 | -7/Factory | Entered Waste 17654 | -7/Waste | The area was eerily silent 17916 | -7/Waste | Discovered new exit (range 16) 17936 | -7/Waste | Build established: Mutant 18060 | -7/Waste | A Compactor rumbled back to life 18060 | -7/Waste | Spotted C-40 Crusher 18075 | -7/Waste | Entered Factory 18487 | -7/Factory | Repaired Broken Imp. Thermal Shield 18599 | -7/Factory | Build established: Tank 18763 | -7/Factory | Identified exit to Garrison 18763 | -7/Factory | Entered Garrison 19136 | -7/Garrison | Triggered checkpoint 19186 | -7/Garrison | Core integrity fell below 50% 19207 | -7/Garrison | Lost 5 parts (1n2u2w) 19210 | -7/Garrison | Destroyed 11 combat bots 19252 | -7/Garrison | Triggered checkpoint 19468 | -7/Garrison | Garrison Relay disabled 19539 | -7/Garrison | Discovered new exit (range 10) 19564 | -7/Garrison | Discovered new exit (range 69) 19564 | -7/Garrison | Discovered new exit (range 51) 19564 | -7/Garrison | Discovered new exit (range 7) 19668 | -7/Garrison | Garrison Relay disabled 19934 | -7/Garrison | Build established: Mutant 20142 | -7/Garrison | Triggered checkpoint 20412 | -7/Garrison | Triggered checkpoint 20727 | -7/Garrison | Triggered checkpoint 20816 | -7/Garrison | Triggered checkpoint 21203 | -7/Garrison | Entered Factory 21203 | -7/Factory | Accompanied by 3 allies 21356 | -7/Factory | Discovered new exit (range 12) 21384 | -7/Factory | Identified exit to Lower Caves 21385 | -7/Factory | Entered Lower Caves 21395 | -7/Lower Caves | Met a Warlord Commander 21396 | -7/Lower Caves | Learned location of Warlord (-4) 21403 | -7/Lower Caves | Found Encrypted Comm Array 21773 | -7/Lower Caves | Learned Factory terminal intel 23068 | -7/Lower Caves | Learned Factory emergency access door positions 23163 | -7/Lower Caves | Discovered new exit (range 12) 23192 | -7/Lower Caves | Identified exit to Lower Caves 23496 | -7/Lower Caves | Entered another Lower Caves area 23496 | -7/Lower Caves | Accompanied by 1 ally 23798 | -7/Lower Caves | Attracted the attention of an 0b10 checkpoint 23972 | -7/Lower Caves | Discovered new exit (range 3) 23981 | -7/Lower Caves | Identified exit to Factory 24479 | -7/Lower Caves | Attacked by a delusional Derelict stockpiling parts 24921 | -7/Lower Caves | Build established: Tank 25236 | -7/Lower Caves | A Commander dispatched an escort 25242 | -7/Lower Caves | Learned Armory stockpile data 25242 | -7/Lower Caves | Learned Research garrison access intel 25381 | -7/Lower Caves | Discovered new exit (range 8) 25732 | -7/Lower Caves | Entered Data Miner 25732 | -7/Data Miner | Accompanied by 2 allies 25733 | -7/Data Miner | Commander's escort returned to base 25733 | -7/Data Miner | Discovered new exit (range 7) 25747 | -7/Data Miner | Identified exit to Proximity Caves 25773 | -7/Data Miner | Met Data Miner 25815 | -7/Data Miner | Learned location of Section 7 (-2) 25815 | -7/Data Miner | Acquired the access code to Warlord's prototype stash 25851 | -7/Data Miner | Received God Mode back door access code from Data Miner 25901 | -7/Data Miner | Data Conduit disabled 25915 | -7/Data Miner | Self-destructed Last Messages --------------- Schematic downloaded. >>Schematic "L-41 Fighter" Downloading schematic... L-41 Fighter Tier: 4 Schematic downloaded. 25839_ G<#,YBUP8EET5%DYGQCNDKLOR557NCX&P< Data Miner: I've just received further instructions. God Mode is nearly complete and we think you might be able to put it to better use than Warlord, so if you see an opportunity, hack it and enter \\T9KG to gain control via the back door I've installed. Now off with you. 25858_ MD,BOPTSYVK CLS7MKHQJXKX 1Y4HK6 25901_ System corrupted: FCS attempts to trigger Matter Neutralizer. 25901_ System corrupted: Matter Neutralizer misfires. 25901_ Data Conduit disabled. 25904_ Chain reaction triggered in Lgt. Ion Engine. 25906_ Sensor Drone retrieved by Sensor Drone Bay. 25913_ Matter Neutralizer destroyed. 25914_ Acquired Hvy. Mass Driver. Map ----- +----------------------------------------------------+ | | | | | | | | | | | | | | | | | | | | | | | | | | | | | | | ???????????????????????????????? | | ???????????????????????????????? | | ???????????????????????????????? | | ???????????????????????????????? | | ???????????????????####????????? | | ###??????????????### #????????? | | ""######????????## #????????? | | """""""# # # # ## > ##????????? | | g g ;######??? | | g ;#??? | | g @ #???? | | ; #?? | | ;###?? | | """"""" """"""""##;###???? | | """"##################?????? | | """""###??????????????????????? | | "#####????????????????????????? | | "#????????????????????????????? | | "#????????????????????????????? | | "#????????????????????????????? | | "#????????????????????????????? | | "#????????????????????????????? | | "#????????????????????????????? | | "#????????????????????????????? | | "##???????????????????????????? | | ""#???????????????????????????? | | ""#???????????????????????????? | | ""#???????????????????????????? | | "####????????????????????????? | | X"""""????????????????????????? | | "##"#????????????????????????? | | X""""#????????????????????????? | | "##"#????????????????????????? | | ####???????????????????????????? | | ???????????????????????????????? | +----------------------------------------------------+ Best States ------------- Heat Dissipation 53 Energy Generation 21 Energy Capacity 325 Matter Stores 300 Matter Capacity 300 Sight Range 16 Terrain Scan Range 16 Terrain Scan Density 10 Power Amplification 30 Base Temperature (-) 200 Armor Coverage 600 Resistance: KI 25 Resistance: TH 25 Evasion (%) 50 Targeting Accuracy 6 Core Analysis 6 Recoil Reduction 4 Particle Charging 15 Offensive Hacking 10 Defensive Hacking 14 Trap Extractor Capacity 4 Item Schematics ----------------- Imp. Assault Rifle | -9/Materials | Scanalyzed Fission Core | -9/Materials | Scanalyzed Cmb. Airjet | -9/Materials | Scanalyzed Hcp. Battery | -9/Materials | Scanalyzed Hcp. Matter Pod | -9/Materials | Scanalyzed Hvy. Particle Gun | -8/Materials | Scanalyzed Arm. Wheel | -8/Materials | Scanalyzed Cld. Pulse Rifle | -8/Materials | Scanalyzed Missile Launcher | -8/Materials | Scanalyzed Adv. Plasma Cannon | -8/Materials | Scanalyzed Powered Armor | -8/Materials | Scanalyzed Hyp. Gauss Cannon | -8/Materials | Scanalyzed Variable Charge Gun | -8/Materials | Scanalyzed Adv. Shield Generator | -8/Materials | Scanalyzed Imp. Focal Shield | -8/Materials | Scanalyzed Cmb. Gravmag System | -8/Materials | Scanalyzed Lyr. Heavy Armor Plating | -8/Materials | Scanalyzed Mni. Drone Bay | -8/Materials | Scanalyzed Gui. EMP Blaster | -7/Factory | Scanalyzed Combat Drone Bay | -7/Data Miner | Free Lgt. Regenerative Plating | -7/Data Miner | Free Cld. Cesium-ion Thruster | -7/Data Miner | Free Gravity Neutralizer | -7/Data Miner | Free Imp. Heavy Machine Gun | -7/Data Miner | Free Arm. Medium Treads | -7/Data Miner | Free Lrn. Proton Cannon | -7/Data Miner | Free Adv. Melee Analysis Suite | -7/Data Miner | Free Point Defense System | -7/Data Miner | Free Robot Schematics ------------------ G-47 Trooper | -7/Data Miner | Free B-48 Gladiator | -7/Data Miner | Free G-50 Soldier | -7/Data Miner | Free O-24 Administrator | -7/Data Miner | Free X-62 Marksman | -7/Data Miner | Free L-41 Fighter | -7/Data Miner | Free Fabricated ------------ K-01 Serf | x1 | -7/Factory | Preloaded Alien Tech Used ----------------- None Achievements -------------- None Challenges ------------ None Game ------ Seed GyrokineticDisposableSword Manual? 0 Play Time 04:16:02 Cumulative 573.2 hours Start 2023.03.14 @ 23:48:16 End 2023.03.15 @ 13:59:44 Sessions 3 Manual Loads 0 Difficulty Rogue Special Mode None Game No. 404 Rogue 404 Adventurer 0 Explorer 0 Win Type - Total 1 Types 1/0/0/0/0/0/0/0/0 Lore% 70 Gallery% 78 Achievement% 58 Wizard Run 0 Options --------- ASCII 0 Keyboard 0 Movement Mouse Keybinds 0 Fullscreen 1 Font 16/SmallcapsGlow Map View 75x55 Tactical HUD 1 Map Filters NONE Filters NONE Steam 1 RUN: 0156954b-da66-4ad2-8e34-e2f6a2ce90fd